[Event "Titled Tuesday Blitz January 31 Early 2023"]
[White "Tymrakiewicz, Rafal"]
[Black "Arjun, Kalyan"]
[WhiteFideId "1108832"]
[BlackFideId "35018701"]
[WhiteElo "2144"]
[BlackElo "2516"]
[Result "1/2-1/2"]
[Round "01"]
[TimeControl "180+2"]
[Date "2023.01.31"]
[WhiteClock "0:00:05"]
[BlackClock "0:00:05"]

1. d4 {[%clk 0:03:00]}  Nf6 {[%clk 0:02:59]} 2. Bg5 {[%clk 0:03:00]}  d5 {[%clk 0:02:59]} 3. e3 {[%clk 0:02:59]}  c5 {[%clk 0:02:58]} 4. c3 {[%clk 0:02:54]}  Nc6 {[%clk 0:02:54]} 5. Nd2 {[%clk 0:02:41]}  e6 {[%clk 0:02:42]} 6. Ngf3 {[%clk 0:02:28]}  Be7 {[%clk 0:02:40]} 7. Bd3 {[%clk 0:02:28]}  h6 {[%clk 0:02:40]} 8. Bh4 {[%clk 0:02:25]}  Qb6 {[%clk 0:02:36]} 9. Rb1 {[%clk 0:02:23]}  Bd7 {[%clk 0:02:33]} 10. O-O {[%clk 0:02:22]}  O-O {[%clk 0:02:19]} 11. Ne5 {[%clk 0:02:22]}  Qc7 {[%clk 0:02:14]} 12. f4 {[%clk 0:02:14]}  Be8 {[%clk 0:02:09]} 13. Rf3 {[%clk 0:02:04]}  Nd7 {[%clk 0:01:52]} 14. Bxe7 {[%clk 0:01:28]}  Nxe7 {[%clk 0:01:52]} 15. Rh3 {[%clk 0:01:17]}  f5 {[%clk 0:01:48]} 16. Nxd7 {[%clk 0:01:12]}  Bxd7 {[%clk 0:01:48]} 17. Nf3 {[%clk 0:01:12]}  c4 {[%clk 0:01:34]} 18. Bc2 {[%clk 0:01:12]}  b5 {[%clk 0:01:34]} 19. Ne5 {[%clk 0:01:11]}  Be8 {[%clk 0:01:35]} 20. g4 {[%clk 0:01:10]}  Nc6 {[%clk 0:01:31]} 21. Nxc6 {[%clk 0:01:03]}  Bxc6 {[%clk 0:01:29]} 22. g5 {[%clk 0:00:59]}  hxg5 {[%clk 0:01:27]} 23. Qh5 {[%clk 0:00:59]}  g4 {[%clk 0:01:25]} 24. Qh7+ {[%clk 0:00:51]}  Kf7 {[%clk 0:01:25]} 25. Rh6 {[%clk 0:00:52]}  Qd7 {[%clk 0:00:29]} 26. Qg6+ {[%clk 0:00:37]}  Kg8 {[%clk 0:00:27]} 27. Qh7+ {[%clk 0:00:37]}  Kf7 {[%clk 0:00:27]} 28. Qg6+ {[%clk 0:00:38]}  Ke7 {[%clk 0:00:26]} 29. Qxg7+ {[%clk 0:00:38]}  Ke8 {[%clk 0:00:17]} 30. Qe5 {[%clk 0:00:34]}  Ke7 {[%clk 0:00:13]} 31. Kf2 {[%clk 0:00:24]}  Rf7 {[%clk 0:00:13]} 32. Rg1 {[%clk 0:00:22]}  Qd6 {[%clk 0:00:12]} 33. Qxd6+ {[%clk 0:00:18]}  Kxd6 {[%clk 0:00:12]} 34. h3 {[%clk 0:00:19]}  gxh3 {[%clk 0:00:10]} 35. Rxh3 {[%clk 0:00:19]}  a5 {[%clk 0:00:08]} 36. Rh6 {[%clk 0:00:19]}  Bd7 {[%clk 0:00:08]} 37. Rgg6 {[%clk 0:00:18]}  b4 {[%clk 0:00:08]} 38. Ke1 {[%clk 0:00:17]}  Rb8 {[%clk 0:00:08]} 39. Kd2 {[%clk 0:00:17]}  b3 {[%clk 0:00:09]} 40. axb3 {[%clk 0:00:17]}  cxb3 {[%clk 0:00:09]} 41. Bd3 {[%clk 0:00:16]}  a4 {[%clk 0:00:10]} 42. Kc1 {[%clk 0:00:15]}  Ra8 {[%clk 0:00:08]} 43. Kb1 {[%clk 0:00:15]}  Ke7 {[%clk 0:00:09]} 44. c4 {[%clk 0:00:10]}  dxc4 {[%clk 0:00:09]} 45. Bxc4 {[%clk 0:00:10]}  Kd8 {[%clk 0:00:03]} 46. Bxe6 {[%clk 0:00:10]}  Bxe6 {[%clk 0:00:03]} 47. Rxe6 {[%clk 0:00:11]}  Kc7 {[%clk 0:00:03]} 48. Rc6+ {[%clk 0:00:11]}  Kb7 {[%clk 0:00:04]} 49. Rb6+ {[%clk 0:00:10]}  Ka7 {[%clk 0:00:03]} 50. Ra6+ {[%clk 0:00:09]}  Kb7 {[%clk 0:00:04]} 51. Rxa8 {[%clk 0:00:09]}  Kxa8 {[%clk 0:00:05]} 52. Ra6+ {[%clk 0:00:09]}  Ra7 {[%clk 0:00:05]} 53. Rf6 {[%clk 0:00:06]}  Re7 {[%clk 0:00:05]} 54. Ra6+ {[%clk 0:00:05]}  Kb7 {[%clk 0:00:05]} 55. Rxa4 {[%clk 0:00:05]}  Rxe3 {[%clk 0:00:05]} 56. Rc4 {[%clk 0:00:05]}  Re1+ {[%clk 0:00:05]} 57. Rc1 {[%clk 0:00:05]}  Re4 {[%clk 0:00:05]} 58. Rc3 {[%clk 0:00:05]}  Re1+ {[%clk 0:00:05]} 59. Rc1 {[%clk 0:00:05]}  Re4 {[%clk 0:00:05]} 60. Rc3 {[%clk 0:00:05]}  Re1+ {[%clk 0:00:05]} 61. Rc1 {[%clk 0:00:05]} 1/2-1/2


[Site "https://www.chess.com"]

[Event "Titled Tuesday Blitz January 31 Early 2023"]
[White "Selbes, Tarik"]
[Black "Mikaelyan, Arman"]
[WhiteFideId "6302513"]
[BlackFideId "13304852"]
[WhiteElo "2255"]
[BlackElo "2523"]
[Result "0-1"]
[Round "01"]
[TimeControl "180+2"]
[Date "2023.01.31"]
[WhiteClock "0:00:04"]
[BlackClock "0:00:56"]

1. Nf3 {[%clk 0:02:59]}  Nf6 {[%clk 0:02:58]} 2. g3 {[%clk 0:02:59]}  g6 {[%clk 0:02:56]} 3. Bg2 {[%clk 0:03:00]}  Bg7 {[%clk 0:02:57]} 4. O-O {[%clk 0:03:00]}  O-O {[%clk 0:02:58]} 5. d4 {[%clk 0:03:00]}  c5 {[%clk 0:02:49]} 6. Nc3 {[%clk 0:02:57]}  cxd4 {[%clk 0:02:46]} 7. Nxd4 {[%clk 0:02:57]}  Nc6 {[%clk 0:02:47]} 8. Nb3 {[%clk 0:02:49]}  d6 {[%clk 0:02:44]} 9. h3 {[%clk 0:02:46]}  a5 {[%clk 0:02:40]} 10. a4 {[%clk 0:02:35]}  Nb4 {[%clk 0:02:27]} 11. Nd4 {[%clk 0:02:24]}  Bd7 {[%clk 0:02:24]} 12. Re1 {[%clk 0:01:55]}  Rc8 {[%clk 0:02:21]} 13. Bxb7 {[%clk 0:01:46]}  Bxh3 {[%clk 0:02:17]} 14. Bxc8 {[%clk 0:01:31]}  Qxc8 {[%clk 0:02:18]} 15. e4 {[%clk 0:01:30]}  Ng4 {[%clk 0:02:15]} 16. Nf3 {[%clk 0:01:02]}  Qc5 {[%clk 0:02:09]} 17. Qe2 {[%clk 0:00:51]}  Nc6 {[%clk 0:01:41]} 18. Nd5 {[%clk 0:00:48]}  Bd4 {[%clk 0:01:19]} 19. Nxd4 {[%clk 0:00:42]}  Nxd4 {[%clk 0:01:20]} 20. Nxe7+ {[%clk 0:00:22]}  Kh8 {[%clk 0:01:19]} 21. Qd3 {[%clk 0:00:22]}  Nxc2 {[%clk 0:01:09]} 22. Re2 {[%clk 0:00:13]}  Nxa1 {[%clk 0:01:07]} 23. Bd2 {[%clk 0:00:13]}  Ne5 {[%clk 0:00:57]} 24. Bc3 {[%clk 0:00:12]}  f6 {[%clk 0:00:58]} 25. Qd1 {[%clk 0:00:09]}  Bg4 {[%clk 0:00:56]} 26. Qxa1 {[%clk 0:00:04]}  Bxe2 {[%clk 0:00:56]} 27. Nd5 {[%clk 0:00:04]} 0-1


[Site "https://www.chess.com"]

[Event "Titled Tuesday Blitz January 31 Early 2023"]
[White "Bas Mas, Jose Joaquin"]
[Black "Albornoz Cabrera, Carlos Daniel"]
[WhiteFideId "22219064"]
[BlackFideId "3518736"]
[WhiteElo "2197"]
[BlackElo "2586"]
[Result "0-1"]
[Round "01"]
[TimeControl "180+2"]
[Date "2023.01.31"]
[WhiteClock "0:02:15"]
[BlackClock "0:02:34"]

1. e4 {[%clk 0:03:00]}  c6 {[%clk 0:02:51]} 2. d4 {[%clk 0:03:00]}  d5 {[%clk 0:02:51]} 3. f3 {[%clk 0:03:01]}  Qb6 {[%clk 0:02:48]} 4. Nc3 {[%clk 0:03:00]}  dxe4 {[%clk 0:02:48]} 5. Bc4 {[%clk 0:02:57]}  Nf6 {[%clk 0:02:47]} 6. fxe4 {[%clk 0:02:53]}  e5 {[%clk 0:02:46]} 7. dxe5 {[%clk 0:02:52]}  Ng4 {[%clk 0:02:46]} 8. Qf3 {[%clk 0:02:38]}  Nxe5 {[%clk 0:02:45]} 9. Qe2 {[%clk 0:02:34]}  Nxc4 {[%clk 0:02:45]} 10. Qxc4 {[%clk 0:02:34]}  Be6 {[%clk 0:02:46]} 11. Qe2 {[%clk 0:02:34]}  Nd7 {[%clk 0:02:38]} 12. Nf3 {[%clk 0:02:34]}  O-O-O {[%clk 0:02:37]} 13. Bf4 {[%clk 0:02:28]}  Qxb2 {[%clk 0:02:34]} 14. O-O {[%clk 0:02:15]}  Qxc3 {[%clk 0:02:34]} 0-1


[Site "https://www.chess.com"]

[Event "Titled Tuesday Blitz January 31 Early 2023"]
[White "matenitian"]
[Black "Tactrics"]
[WhiteElo "2434"]
[BlackElo "2800"]
[Result "0-1"]
[Round "01"]
[TimeControl "180+2"]
[Date "2023.01.31"]
[WhiteClock "0:02:00"]
[BlackClock "0:02:07"]

1. e4 {[%clk 0:02:57]}  e6 {[%clk 0:02:58]} 2. d4 {[%clk 0:02:43]}  d5 {[%clk 0:02:59]} 3. Nd2 {[%clk 0:02:43]}  a6 {[%clk 0:02:59]} 4. Bd3 {[%clk 0:02:42]}  c5 {[%clk 0:02:59]} 5. exd5 {[%clk 0:02:37]}  Qxd5 {[%clk 0:02:57]} 6. Ngf3 {[%clk 0:02:36]}  cxd4 {[%clk 0:02:54]} 7. O-O {[%clk 0:02:36]}  Nc6 {[%clk 0:02:54]} 8. Bc4 {[%clk 0:02:34]}  Qd7 {[%clk 0:02:53]} 9. Nb3 {[%clk 0:02:35]}  Nf6 {[%clk 0:02:52]} 10. Nbxd4 {[%clk 0:02:35]}  Nxd4 {[%clk 0:02:51]} 11. Nxd4 {[%clk 0:02:35]}  Qc7 {[%clk 0:02:46]} 12. Qe2 {[%clk 0:02:30]}  Bd6 {[%clk 0:02:30]} 13. h3 {[%clk 0:02:09]}  Bh2+ {[%clk 0:02:12]} 14. Kh1 {[%clk 0:02:09]}  Bf4 {[%clk 0:02:13]} 15. c3 {[%clk 0:02:02]}  O-O {[%clk 0:02:11]} 16. Qf3 {[%clk 0:02:02]}  Bxc1 {[%clk 0:02:07]} 17. Raxc1 {[%clk 0:02:00]}  Qxc4 {[%clk 0:02:07]} 0-1


[Site "https://www.chess.com"]

[Event "Titled Tuesday Blitz January 31 Early 2023"]
[White "Valle Maytin, Luis Enrique"]
[Black "Koelle, Tobias"]
[WhiteFideId "3503666"]
[BlackFideId "16207378"]
[WhiteElo "2241"]
[BlackElo "2432"]
[Result "1-0"]
[Round "01"]
[TimeControl "180+2"]
[Date "2023.01.31"]
[WhiteClock "0:00:42"]
[BlackClock "0:01:17"]

1. e4 {[%clk 0:02:48]}  a6 {[%clk 0:03:00]} 2. d4 {[%clk 0:02:46]}  e6 {[%clk 0:02:59]} 3. f4 {[%clk 0:02:38]}  d5 {[%clk 0:02:55]} 4. e5 {[%clk 0:02:37]}  c6 {[%clk 0:02:54]} 5. Nf3 {[%clk 0:02:36]}  c5 {[%clk 0:02:54]} 6. c3 {[%clk 0:02:36]}  Nc6 {[%clk 0:02:55]} 7. Bd3 {[%clk 0:02:36]}  h5 {[%clk 0:02:55]} 8. Bc2 {[%clk 0:02:32]}  b5 {[%clk 0:02:53]} 9. Be3 {[%clk 0:02:29]}  Qb6 {[%clk 0:02:49]} 10. dxc5 {[%clk 0:02:25]}  Bxc5 {[%clk 0:02:47]} 11. Bxc5 {[%clk 0:02:24]}  Qxc5 {[%clk 0:02:48]} 12. Nd4 {[%clk 0:02:23]}  Nh6 {[%clk 0:02:39]} 13. Nxc6 {[%clk 0:02:08]}  Qxc6 {[%clk 0:02:38]} 14. Qxh5 {[%clk 0:02:03]}  b4 {[%clk 0:02:35]} 15. Qf3 {[%clk 0:02:00]}  bxc3 {[%clk 0:02:30]} 16. Nxc3 {[%clk 0:01:59]}  Qb6 {[%clk 0:02:28]} 17. Ba4+ {[%clk 0:01:55]}  Kf8 {[%clk 0:02:26]} 18. h3 {[%clk 0:01:40]}  Nf5 {[%clk 0:02:24]} 19. Qf2 {[%clk 0:01:36]}  d4 {[%clk 0:02:16]} 20. Bb3 {[%clk 0:01:23]}  Qa5 {[%clk 0:02:13]} 21. g4 {[%clk 0:01:03]}  dxc3 {[%clk 0:02:11]} 22. O-O-O {[%clk 0:00:57]}  cxb2+ {[%clk 0:02:04]} 23. Kxb2 {[%clk 0:00:53]}  Ne7 {[%clk 0:01:59]} 24. Qc5 {[%clk 0:00:46]}  Bb7 {[%clk 0:01:26]} 25. Qxa5 {[%clk 0:00:43]}  Bxh1 {[%clk 0:01:27]} 26. Rd8+ {[%clk 0:00:42]}  Rxd8 {[%clk 0:01:17]} 27. Qxd8# {[%clk 0:00:42]} 1-0


[Site "https://www.chess.com"]

[Event "Titled Tuesday Blitz January 31 Early 2023"]
[White "Bacrot, Etienne"]
[Black "Tworuszka, Michal"]
[WhiteFideId "605506"]
[BlackFideId "1117858"]
[WhiteElo "2667"]
[BlackElo "2260"]
[Result "1-0"]
[Round "01"]
[TimeControl "180+2"]
[Date "2023.01.31"]
[WhiteClock "0:01:03"]
[BlackClock "0:00:56"]

1. e4 {[%clk 0:02:17]}  c5 {[%clk 0:02:59]} 2. Nf3 {[%clk 0:02:15]}  d6 {[%clk 0:02:59]} 3. Bb5+ {[%clk 0:02:13]}  Bd7 {[%clk 0:02:56]} 4. c4 {[%clk 0:02:12]}  Nc6 {[%clk 0:02:51]} 5. O-O {[%clk 0:02:11]}  g6 {[%clk 0:02:51]} 6. d4 {[%clk 0:02:10]}  cxd4 {[%clk 0:02:51]} 7. Nxd4 {[%clk 0:02:11]}  Bg7 {[%clk 0:02:49]} 8. Be3 {[%clk 0:02:10]}  Nf6 {[%clk 0:02:45]} 9. f3 {[%clk 0:02:07]}  O-O {[%clk 0:02:44]} 10. Nc3 {[%clk 0:02:06]}  Rc8 {[%clk 0:02:39]} 11. Rc1 {[%clk 0:02:04]}  a6 {[%clk 0:02:39]} 12. Bxc6 {[%clk 0:02:04]}  bxc6 {[%clk 0:02:29]} 13. c5 {[%clk 0:01:57]}  Qc7 {[%clk 0:02:04]} 14. cxd6 {[%clk 0:01:48]}  exd6 {[%clk 0:02:05]} 15. Qd2 {[%clk 0:01:49]}  Rfd8 {[%clk 0:02:04]} 16. Kh1 {[%clk 0:01:45]}  Qb7 {[%clk 0:02:01]} 17. Bg5 {[%clk 0:01:42]}  Rf8 {[%clk 0:01:41]} 18. Nb3 {[%clk 0:01:36]}  Qb8 {[%clk 0:01:36]} 19. Rfd1 {[%clk 0:01:16]}  Be6 {[%clk 0:01:22]} 20. Qxd6 {[%clk 0:01:05]}  Bxb3 {[%clk 0:01:22]} 21. axb3 {[%clk 0:01:05]}  Rfd8 {[%clk 0:00:59]} 22. Qxb8 {[%clk 0:01:04]}  Rxb8 {[%clk 0:00:55]} 23. Rxd8+ {[%clk 0:01:03]}  Rxd8 {[%clk 0:00:56]} 24. e5 {[%clk 0:01:03]} 1-0


[Site "https://www.chess.com"]

[Event "Titled Tuesday Blitz January 31 Early 2023"]
[White "Postny, Evgeny"]
[Black "Rodriguez, Santiago"]
[WhiteFideId "2804344"]
[BlackFideId "3000591"]
[WhiteElo "2549"]
[BlackElo "2252"]
[Result "1-0"]
[Round "01"]
[TimeControl "180+2"]
[Date "2023.01.31"]
[WhiteClock "0:00:07"]
[BlackClock "0:00:03"]

1. e4 {[%clk 0:02:58]}  c5 {[%clk 0:02:55]} 2. Nf3 {[%clk 0:02:58]}  Nc6 {[%clk 0:02:55]} 3. d4 {[%clk 0:02:58]}  cxd4 {[%clk 0:02:56]} 4. Nxd4 {[%clk 0:02:59]}  e5 {[%clk 0:02:57]} 5. Nb5 {[%clk 0:02:59]}  d6 {[%clk 0:02:57]} 6. c4 {[%clk 0:02:58]}  Be7 {[%clk 0:02:56]} 7. N1c3 {[%clk 0:02:55]}  a6 {[%clk 0:02:56]} 8. Na3 {[%clk 0:02:55]}  Be6 {[%clk 0:02:57]} 9. Be2 {[%clk 0:02:53]}  Bg5 {[%clk 0:02:56]} 10. O-O {[%clk 0:02:52]}  h6 {[%clk 0:02:55]} 11. Nc2 {[%clk 0:02:50]}  Nf6 {[%clk 0:02:55]} 12. Ne3 {[%clk 0:02:49]}  Nd4 {[%clk 0:02:52]} 13. b3 {[%clk 0:02:43]}  Qa5 {[%clk 0:02:40]} 14. Bd2 {[%clk 0:02:21]}  Bxe3 {[%clk 0:02:37]} 15. fxe3 {[%clk 0:02:22]}  Nxe2+ {[%clk 0:02:35]} 16. Qxe2 {[%clk 0:02:22]}  Qc5 {[%clk 0:02:26]} 17. h3 {[%clk 0:02:10]}  Rc8 {[%clk 0:02:04]} 18. Rf3 {[%clk 0:02:00]}  b5 {[%clk 0:01:54]} 19. cxb5 {[%clk 0:01:56]}  axb5 {[%clk 0:01:53]} 20. b4 {[%clk 0:01:41]}  Qc4 {[%clk 0:01:49]} 21. Qxc4 {[%clk 0:01:32]}  Bxc4 {[%clk 0:01:42]} 22. a4 {[%clk 0:01:30]}  bxa4 {[%clk 0:01:41]} 23. Rxa4 {[%clk 0:01:31]}  O-O {[%clk 0:01:26]} 24. Be1 {[%clk 0:01:23]}  Bd3 {[%clk 0:01:25]} 25. b5 {[%clk 0:01:22]}  Ra8 {[%clk 0:01:16]} 26. Rb4 {[%clk 0:00:59]}  Ra1 {[%clk 0:00:52]} 27. Kf2 {[%clk 0:00:59]}  Rb8 {[%clk 0:00:30]} 28. Bd2 {[%clk 0:00:50]}  Ra3 {[%clk 0:00:25]} 29. Kg1 {[%clk 0:00:40]}  Rxc3 {[%clk 0:00:21]} 30. Bxc3 {[%clk 0:00:40]}  Nxe4 {[%clk 0:00:21]} 31. Be1 {[%clk 0:00:32]}  Rxb5 {[%clk 0:00:21]} 32. Rxb5 {[%clk 0:00:32]}  Bxb5 {[%clk 0:00:22]} 33. h4 {[%clk 0:00:24]}  d5 {[%clk 0:00:21]} 34. Rh3 {[%clk 0:00:22]}  h5 {[%clk 0:00:20]} 35. Bb4 {[%clk 0:00:17]}  f6 {[%clk 0:00:20]} 36. Rh1 {[%clk 0:00:17]}  Ng3 {[%clk 0:00:18]} 37. Rh3 {[%clk 0:00:17]}  Ne4 {[%clk 0:00:18]} 38. Rh1 {[%clk 0:00:15]}  Kf7 {[%clk 0:00:18]} 39. Kh2 {[%clk 0:00:15]}  Ke6 {[%clk 0:00:15]} 40. Ra1 {[%clk 0:00:15]}  g5 {[%clk 0:00:14]} 41. hxg5 {[%clk 0:00:14]}  fxg5 {[%clk 0:00:15]} 42. Ra8 {[%clk 0:00:14]}  Kf5 {[%clk 0:00:15]} 43. Ra7 {[%clk 0:00:10]}  d4 {[%clk 0:00:15]} 44. exd4 {[%clk 0:00:09]}  exd4 {[%clk 0:00:16]} 45. Ra5 {[%clk 0:00:09]}  d3 {[%clk 0:00:10]} 46. Rxb5+ {[%clk 0:00:09]}  Kg4 {[%clk 0:00:10]} 47. Rd5 {[%clk 0:00:09]}  Nf2 {[%clk 0:00:09]} 48. Be1 {[%clk 0:00:07]}  Nd1 {[%clk 0:00:03]} 49. Rxd3 {[%clk 0:00:07]} 1-0


[Site "https://www.chess.com"]

[Event "Titled Tuesday Blitz January 31 Early 2023"]
[White "Fier, Alexandr"]
[Black "Mosquera, Miguel"]
[WhiteFideId "2107139"]
[BlackFideId "4401131"]
[WhiteElo "2589"]
[BlackElo "2371"]
[Result "1-0"]
[Round "01"]
[TimeControl "180+2"]
[Date "2023.01.31"]
[WhiteClock "0:01:46"]
[BlackClock "0:00:04"]

1. d4 {[%clk 0:03:00]}  Nf6 {[%clk 0:02:58]} 2. Nc3 {[%clk 0:03:00]}  d5 {[%clk 0:02:54]} 3. Bg5 {[%clk 0:03:01]}  h6 {[%clk 0:02:51]} 4. Bxf6 {[%clk 0:03:00]}  exf6 {[%clk 0:02:49]} 5. g3 {[%clk 0:02:57]}  Be6 {[%clk 0:02:47]} 6. Bg2 {[%clk 0:02:58]}  Bb4 {[%clk 0:02:44]} 7. e3 {[%clk 0:02:56]}  Nc6 {[%clk 0:02:31]} 8. Ne2 {[%clk 0:02:56]}  Ne7 {[%clk 0:02:29]} 9. Nf4 {[%clk 0:02:55]}  Qd7 {[%clk 0:02:29]} 10. a3 {[%clk 0:02:54]}  Bxc3+ {[%clk 0:02:22]} 11. bxc3 {[%clk 0:02:55]}  O-O {[%clk 0:02:12]} 12. h4 {[%clk 0:02:54]}  Bg4 {[%clk 0:01:56]} 13. Qb1 {[%clk 0:02:54]}  c5 {[%clk 0:01:52]} 14. O-O {[%clk 0:02:46]}  c4 {[%clk 0:01:42]} 15. e4 {[%clk 0:02:46]}  g5 {[%clk 0:01:36]} 16. hxg5 {[%clk 0:02:43]}  fxg5 {[%clk 0:01:35]} 17. Nxd5 {[%clk 0:02:43]}  Nxd5 {[%clk 0:01:36]} 18. exd5 {[%clk 0:02:44]}  Rab8 {[%clk 0:01:27]} 19. Qb4 {[%clk 0:02:43]}  Rfc8 {[%clk 0:01:21]} 20. Rfe1 {[%clk 0:02:43]}  Bh3 {[%clk 0:01:17]} 21. Re7 {[%clk 0:02:41]}  Qf5 {[%clk 0:01:15]} 22. Be4 {[%clk 0:02:39]}  Qf6 {[%clk 0:01:12]} 23. d6 {[%clk 0:02:38]}  a5 {[%clk 0:01:02]} 24. Qb6 {[%clk 0:02:35]}  Rd8 {[%clk 0:00:55]} 25. Rxb7 {[%clk 0:02:27]}  Rxb7 {[%clk 0:00:48]} 26. Qxb7 {[%clk 0:02:27]}  Qxd6 {[%clk 0:00:40]} 27. a4 {[%clk 0:02:26]}  Re8 {[%clk 0:00:29]} 28. Bf3 {[%clk 0:02:22]}  Rb8 {[%clk 0:00:19]} 29. Qe4 {[%clk 0:02:15]}  Qd7 {[%clk 0:00:12]} 30. Kh2 {[%clk 0:02:11]}  Bf5 {[%clk 0:00:12]} 31. Qe2 {[%clk 0:02:10]}  Rb2 {[%clk 0:00:12]} 32. Qxc4 {[%clk 0:02:02]}  Rxc2 {[%clk 0:00:11]} 33. Kg1 {[%clk 0:02:03]}  Bg6 {[%clk 0:00:08]} 34. Re1 {[%clk 0:02:01]}  Qf5 {[%clk 0:00:07]} 35. Be2 {[%clk 0:01:50]}  Qf6 {[%clk 0:00:05]} 36. Qc5 {[%clk 0:01:48]}  Kh7 {[%clk 0:00:04]} 37. Qxa5 {[%clk 0:01:46]} 1-0


[Site "https://www.chess.com"]

[Event "Titled Tuesday Blitz January 31 Early 2023"]
[White "Cherniaiev, Tykhon"]
[Black "Fernandez Garcia, Gumersindo"]
[WhiteFideId "14182360"]
[BlackFideId "24516740"]
[WhiteElo "2330"]
[BlackElo "2160"]
[Result "1-0"]
[Round "01"]
[TimeControl "180+2"]
[Date "2023.01.31"]
[WhiteClock "0:00:38"]
[BlackClock "0:00:16"]

1. Nf3 {[%clk 0:03:00]}  Nf6 {[%clk 0:02:54]} 2. d4 {[%clk 0:03:00]}  g6 {[%clk 0:02:49]} 3. c4 {[%clk 0:03:00]}  Bg7 {[%clk 0:02:50]} 4. Nc3 {[%clk 0:03:01]}  O-O {[%clk 0:02:50]} 5. e4 {[%clk 0:02:58]}  d6 {[%clk 0:02:47]} 6. Be2 {[%clk 0:02:54]}  Nbd7 {[%clk 0:02:47]} 7. O-O {[%clk 0:02:54]}  e5 {[%clk 0:02:42]} 8. h3 {[%clk 0:02:50]}  Re8 {[%clk 0:02:40]} 9. d5 {[%clk 0:02:40]}  Nh5 {[%clk 0:02:39]} 10. Re1 {[%clk 0:02:28]}  Bf8 {[%clk 0:02:30]} 11. Bf1 {[%clk 0:02:27]}  a5 {[%clk 0:02:25]} 12. a3 {[%clk 0:02:25]}  Ng7 {[%clk 0:02:21]} 13. Bh6 {[%clk 0:02:22]}  Be7 {[%clk 0:02:21]} 14. Qd2 {[%clk 0:02:21]}  Nc5 {[%clk 0:02:11]} 15. Rad1 {[%clk 0:02:11]}  f5 {[%clk 0:02:08]} 16. Bxg7 {[%clk 0:02:00]}  Kxg7 {[%clk 0:02:07]} 17. exf5 {[%clk 0:02:01]}  Bxf5 {[%clk 0:01:52]} 18. b4 {[%clk 0:02:01]}  axb4 {[%clk 0:01:51]} 19. axb4 {[%clk 0:02:02]}  Na6 {[%clk 0:01:47]} 20. Nb5 {[%clk 0:01:52]}  Rf8 {[%clk 0:01:40]} 21. Re3 {[%clk 0:01:32]}  Kg8 {[%clk 0:01:21]} 22. Ra3 {[%clk 0:01:21]}  Qd7 {[%clk 0:01:17]} 23. c5 {[%clk 0:01:15]}  Be4 {[%clk 0:00:41]} 24. Ng5 {[%clk 0:00:47]}  Bxg5 {[%clk 0:00:38]} 25. Qxg5 {[%clk 0:00:48]}  Qf7 {[%clk 0:00:28]} 26. Qe3 {[%clk 0:00:42]}  Bxd5 {[%clk 0:00:26]} 27. cxd6 {[%clk 0:00:42]}  cxd6 {[%clk 0:00:26]} 28. Nxd6 {[%clk 0:00:43]}  Qe6 {[%clk 0:00:25]} 29. Rxd5 {[%clk 0:00:44]}  Nxb4 {[%clk 0:00:20]} 30. Rxa8 {[%clk 0:00:42]}  Nxd5 {[%clk 0:00:21]} 31. Rxf8+ {[%clk 0:00:42]}  Kxf8 {[%clk 0:00:21]} 32. Qc5 {[%clk 0:00:42]}  b6 {[%clk 0:00:21]} 33. Qc6 {[%clk 0:00:40]}  Ne7 {[%clk 0:00:20]} 34. Qe8+ {[%clk 0:00:37]}  Kg7 {[%clk 0:00:20]} 35. Nc8 {[%clk 0:00:37]}  Qxc8 {[%clk 0:00:16]} 36. Qxe7+ {[%clk 0:00:38]}  Kg8 {[%clk 0:00:16]} 37. Qxe5 {[%clk 0:00:38]} 1-0


[Site "https://www.chess.com"]

[Event "Titled Tuesday Blitz January 31 Early 2023"]
[White "Acor, Corey"]
[Black "Heinemann, Josefine"]
[WhiteFideId "2024861"]
[BlackFideId "12900460"]
[WhiteElo "2216"]
[BlackElo "2289"]
[Result "1-0"]
[Round "01"]
[TimeControl "180+2"]
[Date "2023.01.31"]
[WhiteClock "0:00:13"]
[BlackClock "0:00:28"]

1. e4 {[%clk 0:03:00]}  e5 {[%clk 0:02:59]} 2. Nc3 {[%clk 0:02:56]}  Nf6 {[%clk 0:02:58]} 3. g3 {[%clk 0:02:55]}  d5 {[%clk 0:02:55]} 4. exd5 {[%clk 0:02:54]}  Nxd5 {[%clk 0:02:56]} 5. Bg2 {[%clk 0:02:54]}  Nxc3 {[%clk 0:02:56]} 6. bxc3 {[%clk 0:02:55]}  Bc5 {[%clk 0:02:56]} 7. Nf3 {[%clk 0:02:53]}  Nc6 {[%clk 0:02:55]} 8. O-O {[%clk 0:02:38]}  O-O {[%clk 0:02:54]} 9. Re1 {[%clk 0:02:35]}  h6 {[%clk 0:02:52]} 10. Rb1 {[%clk 0:02:17]}  Bb6 {[%clk 0:02:50]} 11. d3 {[%clk 0:02:16]}  Re8 {[%clk 0:02:44]} 12. Be3 {[%clk 0:02:05]}  Bf5 {[%clk 0:02:27]} 13. Nh4 {[%clk 0:01:59]}  Bh7 {[%clk 0:02:25]} 14. c4 {[%clk 0:01:59]}  Bxe3 {[%clk 0:02:22]} 15. Rxe3 {[%clk 0:01:50]}  Rb8 {[%clk 0:02:19]} 16. Rxb7 {[%clk 0:01:45]}  Rxb7 {[%clk 0:02:11]} 17. Bxc6 {[%clk 0:01:46]}  Rb2 {[%clk 0:02:09]} 18. Bxe8 {[%clk 0:01:44]}  Qxe8 {[%clk 0:02:10]} 19. Qa1 {[%clk 0:01:32]}  Rxc2 {[%clk 0:02:04]} 20. Rxe5 {[%clk 0:01:27]}  Qd7 {[%clk 0:01:31]} 21. Rd5 {[%clk 0:01:16]}  Qc8 {[%clk 0:01:16]} 22. Qd4 {[%clk 0:01:00]}  Rc1+ {[%clk 0:01:13]} 23. Kg2 {[%clk 0:01:00]}  Qb7 {[%clk 0:01:11]} 24. Nf3 {[%clk 0:00:51]}  Bg6 {[%clk 0:01:08]} 25. h4 {[%clk 0:00:40]}  Rd1 {[%clk 0:00:59]} 26. Qe3 {[%clk 0:00:39]}  Qb1 {[%clk 0:00:43]} 27. Rd8+ {[%clk 0:00:29]}  Kh7 {[%clk 0:00:42]} 28. Qe8 {[%clk 0:00:29]}  Bxd3 {[%clk 0:00:41]} 29. Qg8+ {[%clk 0:00:22]}  Kg6 {[%clk 0:00:41]} 30. Ne5+ {[%clk 0:00:22]}  Kf5 {[%clk 0:00:29]} 31. Qxf7+ {[%clk 0:00:13]}  Kxe5 {[%clk 0:00:28]} 32. Rd5+ {[%clk 0:00:12]}  Ke4 {[%clk 0:00:28]} 33. Qf4# {[%clk 0:00:13]} 1-0


[Site "https://www.chess.com"]

[Event "Titled Tuesday Blitz January 31 Early 2023"]
[White "Sanchez, Robert"]
[Black "Azarov, Sergei"]
[WhiteFideId "2034360"]
[BlackFideId "13501470"]
[WhiteElo "1966"]
[BlackElo "2582"]
[Result "0-1"]
[Round "01"]
[TimeControl "180+2"]
[Date "2023.01.31"]
[WhiteClock "0:01:40"]
[BlackClock "0:01:01"]

1. e4 {[%clk 0:03:00]}  e5 {[%clk 0:02:59]} 2. Nf3 {[%clk 0:03:01]}  Nc6 {[%clk 0:02:59]} 3. Bb5 {[%clk 0:03:01]}  a6 {[%clk 0:02:59]} 4. Ba4 {[%clk 0:03:01]}  Nf6 {[%clk 0:02:59]} 5. d3 {[%clk 0:03:01]}  b5 {[%clk 0:02:58]} 6. Bb3 {[%clk 0:03:01]}  Bc5 {[%clk 0:02:55]} 7. Nc3 {[%clk 0:02:56]}  d6 {[%clk 0:02:49]} 8. Bg5 {[%clk 0:02:55]}  h6 {[%clk 0:02:43]} 9. Bh4 {[%clk 0:02:55]}  g5 {[%clk 0:02:39]} 10. Nxg5 {[%clk 0:02:54]}  hxg5 {[%clk 0:02:04]} 11. Bxg5 {[%clk 0:02:54]}  Bg4 {[%clk 0:01:27]} 12. Qd2 {[%clk 0:02:21]}  Nd4 {[%clk 0:01:06]} 13. Nd5 {[%clk 0:02:11]}  Nxd5 {[%clk 0:01:06]} 14. Bxd8 {[%clk 0:02:11]}  Nf4 {[%clk 0:01:06]} 15. f3 {[%clk 0:01:58]}  Bxf3 {[%clk 0:01:06]} 16. O-O {[%clk 0:01:46]}  Nde2+ {[%clk 0:01:03]} 17. Kh1 {[%clk 0:01:40]}  Ng3# {[%clk 0:01:01]} 0-1


[Site "https://www.chess.com"]